[Event "Early-Titled-Tuesday-Blitz-October-24-2023"]
[Site "Chess.com"]
[Date "2023.10.24"]
[Round "4"]
[White "Gyulamiryan-koryun"]
[Black "NowInChess"]
[Result "1-0"]
[WhiteElo "1958"]
[BlackElo "2227"]
[TimeControl "180+1"]
[EndTime "8:39:26 PDT"]
[Termination "Gyulamiryan-koryun won by checkmate"]

1. e4 {[%clk 0:02:54.9]} 1... e6 {[%clk 0:02:59.9]} 2. d4 {[%clk 0:02:53.3]}
2... d5 {[%clk 0:03:00.5]} 3. exd5 {[%clk 0:02:52.8]} 3... exd5 {[%clk
0:03:00.5]} 4. Bd3 {[%clk 0:02:53.4]} 4... Nc6 {[%clk 0:03:00.3]} 5. c3 {[%clk
0:02:53.9]} 5... Bd6 {[%clk 0:02:59.6]} 6. Nf3 {[%clk 0:02:50.6]} 6... Bg4
{[%clk 0:02:58.6]} 7. O-O {[%clk 0:02:44.3]} 7... Nge7 {[%clk 0:02:58.2]} 8. Be3
{[%clk 0:02:44]} 8... Qd7 {[%clk 0:02:56.2]} 9. Nbd2 {[%clk 0:02:44.4]} 9... f6
{[%clk 0:02:52.4]} 10. Qc2 {[%clk 0:02:44.9]} 10... Bf5 {[%clk 0:02:47.6]} 11.
c4 {[%clk 0:02:38.8]} 11... Nb4 {[%clk 0:02:30]} 12. Bxf5 {[%clk 0:02:33.8]}
12... Nxc2 {[%clk 0:01:52.9]} 13. Bxd7+ {[%clk 0:02:33]} 13... Kxd7 {[%clk
0:01:53.8]} 14. Rac1 {[%clk 0:02:32.9]} 14... Nxe3 {[%clk 0:01:50.3]} 15. fxe3
{[%clk 0:02:33]} 15... c6 {[%clk 0:01:45.6]} 16. c5 {[%clk 0:02:28.9]} 16... Bc7
{[%clk 0:01:41.6]} 17. b4 {[%clk 0:02:25.2]} 17... a6 {[%clk 0:01:37.4]} 18. a4
{[%clk 0:02:24.5]} 18... Rhe8 {[%clk 0:01:36.3]} 19. e4 {[%clk 0:02:23.2]} 19...
dxe4 {[%clk 0:01:32.7]} 20. Nxe4 {[%clk 0:02:23.1]} 20... Nd5 {[%clk 0:01:33.2]}
21. Nc3 {[%clk 0:02:07.8]} 21... Nxb4 {[%clk 0:01:27.9]} 22. Rb1 {[%clk
0:02:07.9]} 22... a5 {[%clk 0:01:24.7]} 23. Rfd1 {[%clk 0:02:00.8]} 23... Re3
{[%clk 0:01:17.9]} 24. Rbc1 {[%clk 0:01:46]} 24... Rae8 {[%clk 0:01:08.6]} 25.
d5 {[%clk 0:01:43.8]} 25... cxd5 {[%clk 0:01:05.7]} 26. Nxd5 {[%clk 0:01:43.8]}
26... Nxd5 {[%clk 0:01:02.8]} 27. Rxd5+ {[%clk 0:01:42.9]} 27... Kc6 {[%clk
0:01:03.1]} 28. Rcd1 {[%clk 0:01:42.2]} 28... R8e7 {[%clk 0:00:43.1]} 29. Rh5
{[%clk 0:01:20.1]} 29... g6 {[%clk 0:00:34.7]} 30. Nd4+ {[%clk 0:01:20]} 30...
Kd7 {[%clk 0:00:23.8]} 31. Rd5+ {[%clk 0:00:37]} 31... Kc8 {[%clk 0:00:17.4]}
32. Nb5 {[%clk 0:00:35.3]} 32... Re1+ {[%clk 0:00:16.6]} 33. Kf2 {[%clk
0:00:32.8]} 33... Rxd1 {[%clk 0:00:14]} 34. Rxd1 {[%clk 0:00:31.4]} 34... Re5
{[%clk 0:00:13.5]} 35. Rc1 {[%clk 0:00:19.2]} 35... Rf5+ {[%clk 0:00:13.3]} 36.
Kg1 {[%clk 0:00:14.8]} 36... Rh5 {[%clk 0:00:11.4]} 37. h3 {[%clk 0:00:14.2]}
37... Rd5 {[%clk 0:00:10.5]} 38. c6 {[%clk 0:00:13.6]} 38... b6 {[%clk
0:00:10.2]} 39. Na7+ {[%clk 0:00:11.9]} 39... Kb8 {[%clk 0:00:09.6]} 40. Nb5
{[%clk 0:00:11.8]} 40... Rc5 {[%clk 0:00:09.8]} 41. Rxc5 {[%clk 0:00:08.6]}
41... bxc5 {[%clk 0:00:10.2]} 42. Kf2 {[%clk 0:00:09.3]} 42... Kc8 {[%clk
0:00:07.3]} 43. Ke3 {[%clk 0:00:09.5]} 43... Bb6 {[%clk 0:00:07.8]} 44. Kd3
{[%clk 0:00:09]} 44... Kd8 {[%clk 0:00:08.4]} 45. Kc4 {[%clk 0:00:08.7]} 45...
Ke7 {[%clk 0:00:08.8]} 46. Kd5 {[%clk 0:00:01.3]} 46... f5 {[%clk 0:00:08]} 47.
c7 {[%clk 0:00:01.5]} 47... Kd7 {[%clk 0:00:08.1]} 48. c8=Q+ {[%clk 0:00:01.1]}
48... Kxc8 {[%clk 0:00:08]} 49. Nd6+ {[%clk 0:00:01.7]} 49... Kc7 {[%clk
0:00:07.8]} 50. Nb5+ {[%clk 0:00:02.5]} 50... Kb7 {[%clk 0:00:08.1]} 51. Nd6+
{[%clk 0:00:03.4]} 51... Kc7 {[%clk 0:00:08]} 52. Nc4 {[%clk 0:00:04.3]} 52...
Kd7 {[%clk 0:00:08.7]} 53. Nxb6+ {[%clk 0:00:04.5]} 53... Ke7 {[%clk 0:00:05.6]}
54. Nc4 {[%clk 0:00:05.4]} 54... f4 {[%clk 0:00:05.8]} 55. Kxc5 {[%clk
0:00:06.3]} 55... Ke6 {[%clk 0:00:05.5]} 56. Nxa5 {[%clk 0:00:06.8]} 56... g5
{[%clk 0:00:04.9]} 57. Nc4 {[%clk 0:00:07.4]} 57... h5 {[%clk 0:00:05.2]} 58. a5
{[%clk 0:00:08.1]} 58... g4 {[%clk 0:00:05.2]} 59. hxg4 {[%clk 0:00:07.5]} 59...
hxg4 {[%clk 0:00:05.4]} 60. a6 {[%clk 0:00:07.9]} 60... f3 {[%clk 0:00:05.8]}
61. gxf3 {[%clk 0:00:08.4]} 61... gxf3 {[%clk 0:00:04.6]} 62. Ne3 {[%clk
0:00:09.1]} 62... Ke5 {[%clk 0:00:03.9]} 63. a7 {[%clk 0:00:09.6]} 63... Ke4
{[%clk 0:00:04.6]} 64. a8=Q+ {[%clk 0:00:09.5]} 64... Kxe3 {[%clk 0:00:05]} 65.
Qe8+ {[%clk 0:00:09.8]} 65... Kf2 {[%clk 0:00:05]} 66. Kd4 {[%clk 0:00:10.3]}
66... Kg1 {[%clk 0:00:04.1]} 67. Qg6+ {[%clk 0:00:10.9]} 67... Kh2 {[%clk
0:00:03.7]} 68. Qf5 {[%clk 0:00:10.9]} 68... Kg2 {[%clk 0:00:03.2]} 69. Ke3
{[%clk 0:00:10.9]} 69... f2 {[%clk 0:00:03.8]} 70. Qxf2+ {[%clk 0:00:11.2]}
70... Kh1 {[%clk 0:00:04.4]} 71. Qf8 {[%clk 0:00:08.2]} 71... Kg1 {[%clk
0:00:05.3]} 72. Ke2 {[%clk 0:00:07]} 72... Kg2 {[%clk 0:00:06.2]} 73. Qg7+
{[%clk 0:00:06.5]} 73... Kh2 {[%clk 0:00:07.1]} 74. Kf3 {[%clk 0:00:06.7]} 74...
Kh3 {[%clk 0:00:08]} 75. Qg3# {[%clk 0:00:06.9]} 1-0

[Event "Early-Titled-Tuesday-Blitz-October-24-2023"]
[Site "Chess.com"]
[Date "2023.10.24"]
[Round "4"]
[White "mariaesthergranados"]
[Black "DKmirl"]
[Result "0-1"]
[WhiteElo "2139"]
[BlackElo "2294"]
[TimeControl "180+1"]
[EndTime "8:39:54 PDT"]
[Termination "DKmirl won by checkmate"]

1. e4 {[%clk 0:02:56.6]} 1... c5 {[%clk 0:02:59.6]} 2. Nc3 {[%clk 0:02:57.2]}
2... Nc6 {[%clk 0:02:59]} 3. Bb5 {[%clk 0:02:57.9]} 3... g6 {[%clk 0:02:57.9]}
4. Bxc6 {[%clk 0:02:57.9]} 4... bxc6 {[%clk 0:02:58.5]} 5. f4 {[%clk 0:02:58.8]}
5... Bg7 {[%clk 0:02:58.8]} 6. Nf3 {[%clk 0:02:59.7]} 6... Nf6 {[%clk
0:02:58.3]} 7. d3 {[%clk 0:02:54.1]} 7... O-O {[%clk 0:02:58]} 8. O-O {[%clk
0:02:54.2]} 8... d6 {[%clk 0:02:56.9]} 9. Qe1 {[%clk 0:02:53.4]} 9... Bg4 {[%clk
0:02:54.5]} 10. h3 {[%clk 0:02:52.7]} 10... Bxf3 {[%clk 0:02:54.7]} 11. Rxf3
{[%clk 0:02:53.6]} 11... Qb6 {[%clk 0:02:48.6]} 12. Kh1 {[%clk 0:02:50.7]} 12...
Nd7 {[%clk 0:02:47.9]} 13. b3 {[%clk 0:02:49]} 13... a5 {[%clk 0:02:28.7]} 14.
Bd2 {[%clk 0:02:47.5]} 14... Qc7 {[%clk 0:02:23.7]} 15. Rd1 {[%clk 0:02:44.7]}
15... Nb6 {[%clk 0:02:23.1]} 16. a4 {[%clk 0:02:44.2]} 16... Nd7 {[%clk
0:02:19.4]} 17. Qh4 {[%clk 0:02:44.2]} 17... Bf6 {[%clk 0:02:16.2]} 18. Qh6
{[%clk 0:02:41.5]} 18... Bg7 {[%clk 0:01:58.4]} 19. Qh4 {[%clk 0:02:31.9]} 19...
Rae8 {[%clk 0:01:53.4]} 20. g4 {[%clk 0:02:30.9]} 20... e5 {[%clk 0:01:51.4]}
21. f5 {[%clk 0:02:28.9]} 21... f6 {[%clk 0:01:51.2]} 22. g5 {[%clk 0:02:27.8]}
22... Qd8 {[%clk 0:01:37.4]} 23. Rdf1 {[%clk 0:02:22.4]} 23... gxf5 {[%clk
0:01:31.4]} 24. Rxf5 {[%clk 0:02:10.8]} 24... fxg5 {[%clk 0:01:29.1]} 25. Bxg5
{[%clk 0:02:11.7]} 25... Qc8 {[%clk 0:01:21.1]} 26. Bh6 {[%clk 0:01:56.3]} 26...
Rxf5 {[%clk 0:01:19.8]} 27. Rxf5 {[%clk 0:01:54.7]} 27... Nf8 {[%clk 0:01:04]}
28. Qg4 {[%clk 0:01:47.8]} 28... Ng6 {[%clk 0:01:02]} 29. Bxg7 {[%clk
0:01:45.7]} 29... Kxg7 {[%clk 0:01:02.3]} 30. h4 {[%clk 0:01:46.2]} 30... h5
{[%clk 0:00:44.4]} 31. Qg5 {[%clk 0:01:45.7]} 31... Qd8 {[%clk 0:00:38.5]} 32.
Kh2 {[%clk 0:01:18.8]} 32... Qxg5 {[%clk 0:00:30.8]} 33. Rxg5 {[%clk 0:01:19.7]}
33... Kh6 {[%clk 0:00:30.4]} 34. Kg3 {[%clk 0:01:19.2]} 34... Rf8 {[%clk
0:00:29.2]} 35. Rf5 {[%clk 0:01:18.6]} 35... Kg7 {[%clk 0:00:22.1]} 36. Rxh5
{[%clk 0:01:08.7]} 36... Rf1 {[%clk 0:00:17.4]} 37. Rg5 {[%clk 0:01:09.3]} 37...
Rg1+ {[%clk 0:00:17]} 38. Kf2 {[%clk 0:01:05]} 38... Rxg5 {[%clk 0:00:12.6]} 39.
hxg5 {[%clk 0:01:05.9]} 39... Nf4 {[%clk 0:00:12.3]} 40. Kg3 {[%clk 0:00:45]}
40... Kg6 {[%clk 0:00:12.1]} 41. Kg4 {[%clk 0:00:45.3]} 41... Ne6 {[%clk
0:00:12]} 42. Ne2 {[%clk 0:00:45.1]} 42... Nxg5 {[%clk 0:00:11.4]} 43. Ng3
{[%clk 0:00:44.4]} 43... Nf7 {[%clk 0:00:07.3]} 44. Nf5 {[%clk 0:00:45.1]} 44...
Kf6 {[%clk 0:00:07.5]} 45. Kh5 {[%clk 0:00:45.2]} 45... Ke6 {[%clk 0:00:06.9]}
46. Kg6 {[%clk 0:00:45.9]} 46... Nd8 {[%clk 0:00:03.4]} 47. Ng7+ {[%clk
0:00:44.7]} 47... Kd7 {[%clk 0:00:02.8]} 48. Kf6 {[%clk 0:00:44]} 48... Nb7
{[%clk 0:00:01.4]} 49. Kf7 {[%clk 0:00:35.5]} 49... c4 {[%clk 0:00:01.6]} 50.
dxc4 {[%clk 0:00:20.6]} 50... Nc5 {[%clk 0:00:01.9]} 51. Nh5 {[%clk 0:00:20.3]}
51... Nxe4 {[%clk 0:00:02.7]} 52. Kg6 {[%clk 0:00:14.2]} 52... Nc5 {[%clk
0:00:02.9]} 53. Kf5 {[%clk 0:00:10.5]} 53... Ke7 {[%clk 0:00:03.3]} 54. Ng3
{[%clk 0:00:10.6]} 54... Ne6 {[%clk 0:00:03.7]} 55. Ne4 {[%clk 0:00:08.7]} 55...
Nd4+ {[%clk 0:00:04.2]} 56. Kg6 {[%clk 0:00:09]} 56... Nxc2 {[%clk 0:00:04.9]}
57. c5 {[%clk 0:00:09.4]} 57... d5 {[%clk 0:00:05]} 58. Ng3 {[%clk 0:00:08.8]}
58... Nd4 {[%clk 0:00:05.3]} 59. Kg5 {[%clk 0:00:08.6]} 59... Ke6 {[%clk
0:00:05.5]} 60. Kg4 {[%clk 0:00:07.1]} 60... Nxb3 {[%clk 0:00:06.1]} 61. Kf3
{[%clk 0:00:07.7]} 61... Nxc5 {[%clk 0:00:06.8]} 62. Ke3 {[%clk 0:00:08.3]}
62... d4+ {[%clk 0:00:06.8]} 63. Kd2 {[%clk 0:00:08.3]} 63... Nxa4 {[%clk
0:00:06.5]} 64. Ne4 {[%clk 0:00:08.6]} 64... Kd5 {[%clk 0:00:07]} 65. Nf6+
{[%clk 0:00:07.9]} 65... Kc4 {[%clk 0:00:07.6]} 66. Ne4 {[%clk 0:00:07.7]} 66...
c5 {[%clk 0:00:08]} 67. Nd6+ {[%clk 0:00:08]} 67... Kd5 {[%clk 0:00:07.9]} 68.
Nf5 {[%clk 0:00:08.7]} 68... Nb6 {[%clk 0:00:07.9]} 69. Ne7+ {[%clk 0:00:08.1]}
69... Ke6 {[%clk 0:00:08.3]} 70. Nc6 {[%clk 0:00:08.4]} 70... a4 {[%clk
0:00:08.3]} 71. Na5 {[%clk 0:00:08.1]} 71... c4 {[%clk 0:00:07.5]} 72. Kc2
{[%clk 0:00:07.7]} 72... Kd6 {[%clk 0:00:07.4]} 73. Nb7+ {[%clk 0:00:07.3]}
73... Kc6 {[%clk 0:00:07.8]} 74. Na5+ {[%clk 0:00:07.3]} 74... Kb5 {[%clk
0:00:07.7]} 75. Nb7 {[%clk 0:00:08]} 75... d3+ {[%clk 0:00:07.2]} 76. Kd2 {[%clk
0:00:07.3]} 76... Nd5 {[%clk 0:00:07]} 77. Nd6+ {[%clk 0:00:08]} 77... Kc5
{[%clk 0:00:06.4]} 78. Ne4+ {[%clk 0:00:08.7]} 78... Kb4 {[%clk 0:00:06.3]} 79.
Kc1 {[%clk 0:00:07.5]} 79... c3 {[%clk 0:00:06.3]} 80. Kb1 {[%clk 0:00:06.9]}
80... c2+ {[%clk 0:00:05.9]} 81. Kc1 {[%clk 0:00:07.3]} 81... Kb3 {[%clk
0:00:05.2]} 82. Nd2+ {[%clk 0:00:07.7]} 82... Kb4 {[%clk 0:00:05]} 83. Ne4
{[%clk 0:00:07.7]} 83... Nc3 {[%clk 0:00:04.6]} 84. Nxc3 {[%clk 0:00:07.9]}
84... a3 {[%clk 0:00:03]} 85. Kd2 {[%clk 0:00:05.1]} 85... c1=Q+ {[%clk
0:00:02.3]} 86. Kxc1 {[%clk 0:00:04.5]} 86... Kxc3 {[%clk 0:00:03.2]} 87. Kb1
{[%clk 0:00:05]} 87... d2 {[%clk 0:00:03.4]} 88. Ka1 {[%clk 0:00:05.8]} 88...
d1=Q+ {[%clk 0:00:03.7]} 89. Ka2 {[%clk 0:00:06.5]} 89... Qb3+ {[%clk
0:00:04.4]} 90. Ka1 {[%clk 0:00:06.5]} 90... Qb2# {[%clk 0:00:05]} 0-1

[Event "Early-Titled-Tuesday-Blitz-October-24-2023"]
[Site "Chess.com"]
[Date "2023.10.24"]
[Round "4"]
[White "GMSrinath"]
[Black "gau248"]
[Result "1-0"]
[WhiteElo "2836"]
[BlackElo "2595"]
[TimeControl "180+1"]
[EndTime "8:39:56 PDT"]
[Termination "GMSrinath won by resignation"]

1. Nf3 {[%clk 0:03:00.9]} 1... d5 {[%clk 0:02:59.7]} 2. e3 {[%clk 0:02:56.5]}
2... Nf6 {[%clk 0:02:55.9]} 3. c4 {[%clk 0:02:57.1]} 3... e6 {[%clk 0:02:54.5]}
4. Nc3 {[%clk 0:02:56.8]} 4... Be7 {[%clk 0:02:53]} 5. b3 {[%clk 0:02:57.4]}
5... O-O {[%clk 0:02:52.8]} 6. Bb2 {[%clk 0:02:57.7]} 6... b6 {[%clk 0:02:53.1]}
7. Rc1 {[%clk 0:02:56.9]} 7... Bb7 {[%clk 0:02:52.9]} 8. cxd5 {[%clk 0:02:55.5]}
8... exd5 {[%clk 0:02:52.3]} 9. g3 {[%clk 0:02:56.1]} 9... Nbd7 {[%clk 0:02:52]}
10. Bg2 {[%clk 0:02:56.1]} 10... c5 {[%clk 0:02:51.7]} 11. O-O {[%clk
0:02:55.6]} 11... Rc8 {[%clk 0:02:50.5]} 12. d4 {[%clk 0:02:56]} 12... Ne4
{[%clk 0:02:48.8]} 13. Nxe4 {[%clk 0:02:46.4]} 13... dxe4 {[%clk 0:02:48.7]} 14.
Nd2 {[%clk 0:02:47.1]} 14... f5 {[%clk 0:02:40.9]} 15. Nc4 {[%clk 0:02:44.3]}
15... Nf6 {[%clk 0:02:39]} 16. dxc5 {[%clk 0:02:41.6]} 16... Bxc5 {[%clk
0:02:36.4]} 17. Qe2 {[%clk 0:02:39.4]} 17... Ba6 {[%clk 0:02:34.5]} 18. Rfd1
{[%clk 0:02:38.7]} 18... Qe7 {[%clk 0:02:34.4]} 19. Qe1 {[%clk 0:02:24]} 19...
Rfd8 {[%clk 0:02:28.2]} 20. Bf1 {[%clk 0:02:23]} 20... Bb4 {[%clk 0:02:11.7]}
21. Bxf6 {[%clk 0:01:53.2]} 21... gxf6 {[%clk 0:02:08]} 22. Rxd8+ {[%clk
0:01:52.7]} 22... Rxd8 {[%clk 0:02:04.9]} 23. Qe2 {[%clk 0:01:52.1]} 23... b5
{[%clk 0:01:48.5]} 24. a3 {[%clk 0:01:32]} 24... Bc5 {[%clk 0:01:44.3]} 25. Na5
{[%clk 0:01:27.5]} 25... Bxa3 {[%clk 0:01:37.3]} 26. Rc6 {[%clk 0:01:10.4]}
26... Bc8 {[%clk 0:01:36.2]} 27. Qxb5 {[%clk 0:01:07.9]} 27... Bd6 {[%clk
0:01:19.8]} 28. Nc4 {[%clk 0:00:56.1]} 28... Bd7 {[%clk 0:01:11.1]} 29. Qd5+
{[%clk 0:00:54.9]} 29... Be6 {[%clk 0:01:11.7]} 30. Qa5 {[%clk 0:00:48.8]} 30...
h5 {[%clk 0:00:52.2]} 31. Nxd6 {[%clk 0:00:26.8]} 31... Rxd6 {[%clk 0:00:47.1]}
32. Rc7 {[%clk 0:00:16.6]} 32... Rd7 {[%clk 0:00:45.3]} 33. Rc1 {[%clk
0:00:14.8]} 33... h4 {[%clk 0:00:41.6]} 34. b4 {[%clk 0:00:13.8]} 34... Kh7
{[%clk 0:00:33.7]} 35. b5 {[%clk 0:00:13.2]} 35... f4 {[%clk 0:00:27.6]} 36.
exf4 {[%clk 0:00:11.3]} 36... e3 {[%clk 0:00:24.7]} 37. Qe1 {[%clk 0:00:11.9]}
37... exf2+ {[%clk 0:00:20.9]} 38. Qxf2 {[%clk 0:00:12.8]} 38... hxg3 {[%clk
0:00:21]} 39. hxg3 {[%clk 0:00:13.7]} 39... Bf5 {[%clk 0:00:19.9]} 40. Qc5
{[%clk 0:00:11.6]} 40... Qe4 {[%clk 0:00:18.4]} 41. Bg2 {[%clk 0:00:08.9]} 41...
Qd3 {[%clk 0:00:17]} 42. Kh2 {[%clk 0:00:09.4]} 42... Rg7 {[%clk 0:00:17.1]} 43.
Rc3 {[%clk 0:00:07.6]} 43... Qd7 {[%clk 0:00:10.7]} 44. Qf8 {[%clk 0:00:05.6]}
44... Qf7 {[%clk 0:00:09.3]} 45. Qd6 {[%clk 0:00:05.4]} 45... Qh5+ {[%clk
0:00:08.8]} 46. Kg1 {[%clk 0:00:06]} 46... Bh3 {[%clk 0:00:08]} 47. Qd3+ {[%clk
0:00:04.6]} 47... Kh6 {[%clk 0:00:07.2]} 48. Qf3 {[%clk 0:00:05.1]} 48... Bxg2
{[%clk 0:00:07]} 49. Qxh5+ {[%clk 0:00:05]} 49... Kxh5 {[%clk 0:00:07.9]} 50.
Kxg2 {[%clk 0:00:05.9]} 50... Rb7 {[%clk 0:00:08.1]} 51. Rc6 {[%clk 0:00:04.5]}
51... Kg6 {[%clk 0:00:07.2]} 52. Rc5 {[%clk 0:00:05.1]} 52... Rd7 {[%clk
0:00:06.8]} 53. g4 {[%clk 0:00:04.5]} 53... Rd2+ {[%clk 0:00:06.6]} 54. Kf3
{[%clk 0:00:05]} 54... Rb2 {[%clk 0:00:06.9]} 55. Ke4 {[%clk 0:00:03.4]} 55...
Rb4+ {[%clk 0:00:07]} 56. Ke3 {[%clk 0:00:03.9]} 56... Rb3+ {[%clk 0:00:07.2]}
57. Kf2 {[%clk 0:00:04.5]} 57... Rb2+ {[%clk 0:00:07.4]} 58. Kg3 {[%clk
0:00:05.1]} 58... Rb3+ {[%clk 0:00:07.9]} 59. Kh4 {[%clk 0:00:05.8]} 59... Rb4
{[%clk 0:00:06.6]} 60. f5+ {[%clk 0:00:05.3]} 60... Kh6 {[%clk 0:00:06.9]} 61.
Rc6 {[%clk 0:00:05.7]} 61... Kg7 {[%clk 0:00:06.8]} 62. Kh5 {[%clk 0:00:06.1]}
62... Rxb5 {[%clk 0:00:06.8]} 63. Rc7+ {[%clk 0:00:06.8]} 63... Kg8 {[%clk
0:00:06.9]} 64. Kg6 {[%clk 0:00:07.7]} 64... Kf8 {[%clk 0:00:05.9]} 65. Kxf6
{[%clk 0:00:07.9]} 65... Rb6+ {[%clk 0:00:06.4]} 66. Kg5 {[%clk 0:00:08.3]}
66... a5 {[%clk 0:00:06.5]} 67. Ra7 {[%clk 0:00:08.9]} 67... Rb5 {[%clk
0:00:06.8]} 68. Kg6 {[%clk 0:00:09.6]} 68... Rb8 {[%clk 0:00:05.3]} 69. Rxa5
{[%clk 0:00:08.9]} 69... Kg8 {[%clk 0:00:05.8]} 70. g5 {[%clk 0:00:09]} 70...
Rc8 {[%clk 0:00:06.2]} 71. f6 {[%clk 0:00:09.5]} 71... Rd8 {[%clk 0:00:06.9]}
72. Ra7 {[%clk 0:00:10.1]} 72... Rc8 {[%clk 0:00:06.7]} 73. Kh6 {[%clk
0:00:09.1]} 73... Rc2 {[%clk 0:00:05]} 74. f7+ {[%clk 0:00:06.4]} 74... Kf8
{[%clk 0:00:04.4]} 75. g6 {[%clk 0:00:06.7]} 75... Rh2+ {[%clk 0:00:04.4]} 76.
Kg5 {[%clk 0:00:07.3]} 76... Rg2+ {[%clk 0:00:04.9]} 77. Kf5 {[%clk 0:00:07.9]}
77... Rf2+ {[%clk 0:00:05.4]} 78. Ke4 {[%clk 0:00:08.3]} 78... Kg7 {[%clk
0:00:04.7]} 79. Ra8 {[%clk 0:00:08.5]} 79... Rf6 {[%clk 0:00:04]} 80. Rg8+
{[%clk 0:00:08.1]} 80... Kh6 {[%clk 0:00:02.9]} 81. f8=Q+ {[%clk 0:00:08.7]}
81... Rxf8 {[%clk 0:00:03.8]} 82. Rxf8 {[%clk 0:00:09.6]} 82... Kg7 {[%clk
0:00:04.7]} 83. Rf5 {[%clk 0:00:09.9]} 1-0